bitfinex/quotes_BTCUSD_20250204
["timestamp","ask_amount","ask_price","bid_price","bid_amount"]
[1738679060942,0.00014097,99144.0,99143.0,0.43489359]
[1738679061755,0.00014097,99144.0,99143.0,0.40368106]
[1738679062049,0.00014097,99144.0,99143.0,0.40668106]
[1738679063155,0.00014097,99144.0,99143.0,0.40368106]
[1738679063367,0.07074097,99159.0,99144.0,0.15]
[1738679063564,0.07074097,99159.0,99150.0,0.151285]
[1738679063773,0.07074097,99159.0,99151.0,0.10238506]
[1738679064242,0.07074097,99159.0,99152.0,0.151282]
[1738679064450,0.05174097,99159.0,99153.0,0.10238506]
[1738679066461,0.05184767,99159.0,99153.0,0.10238506]
[1738679066740,0.198673,99158.0,99153.0,0.10238506]
[1738679066926,0.0474,99158.0,99153.0,0.10538506]
[1738679067751,0.0474,99158.0,99153.0,0.10238506]
[1738679068182,0.0474,99158.0,99153.0,0.10538506]
[1738679069147,0.151279,99154.0,99153.0,0.003]
[1738679069348,0.324279,99154.0,99153.0,0.003]
[1738679069548,0.174279,99154.0,99153.0,0.003]
[1738679070644,0.1003,99153.0,99134.0,0.00022407]
[1738679070850,0.151293,99145.0,99144.0,0.10285543]
[1738679072103,0.151293,99145.0,99144.0,0.00047037]
[1738679072307,0.300593,99145.0,99144.0,0.00047037]
[1738679072948,0.300593,99145.0,99144.0,0.00347037]
[1738679073362,0.300593,99145.0,99144.0,0.00047037]
[1738679073788,0.295593,99145.0,99144.0,0.00347037]
[1738679073983,0.295593,99145.0,99144.0,0.00047037]
[1738679074805,0.295593,99145.0,99144.0,0.00347037]
[1738679076924,0.445593,99145.0,99144.0,0.00347037]
[1738679077239,0.445593,99145.0,99144.0,0.00047037]
[1738679077582,0.445593,99145.0,99144.0,0.00347037]
[1738679077988,0.45585515,99145.0,99144.0,0.00047037]
[1738679078179,0.45585515,99145.0,99144.0,0.00347037]
[1738679078426,0.45585515,99145.0,99144.0,0.00047037]
[1738679078817,0.45585515,99145.0,99144.0,0.00347037]
[1738679079644,0.45596185,99145.0,99144.0,0.00347037]
[1738679080743,0.45883285,99145.0,99144.0,0.00347037]
[1738679081072,0.45883285,99145.0,99144.0,0.00047037]
[1738679081430,0.45883285,99145.0,99144.0,0.00347037]
[1738679082611,0.28583285,99145.0,99144.0,0.00347037]
[1738679083651,0.28583285,99145.0,99144.0,0.00047037]
[1738679084084,0.28583285,99145.0,99144.0,0.00347037]
[1738679089648,0.28583285,99145.0,99144.0,0.10585543]
[1738679090052,0.01323985,99145.0,99144.0,0.10585543]
[1738679091430,0.0029777,99145.0,99144.0,0.25715043]
[1738679092298,0.0029777,99145.0,99144.0,0.25415043]
[1738679092504,0.0029777,99145.0,99144.0,0.10285543]
[1738679093846,0.0029777,99145.0,99144.0,0.10585543]
[1738679094029,0.0029777,99145.0,99144.0,0.10307971]
[1738679094692,0.1542707,99145.0,99144.0,0.10607971]
[1738679096442,0.2349707,99145.0,99144.0,0.10607971]
[1738679097876,0.2349707,99145.0,99144.0,0.10307971]
[1738679098431,0.2349707,99145.0,99144.0,0.10607971]
[1738679098824,0.2349707,99145.0,99144.0,0.10307971]
[1738679099025,0.2349707,99145.0,99144.0,0.10607971]
[1738679100254,0.0029777,99145.0,99144.0,0.10607971]
[1738679100428,0.0029777,99145.0,99144.0,0.26737471]
[1738679100631,0.0029777,99145.0,99144.0,0.29866253]
[1738679100831,0.0029777,99145.0,99144.0,0.45599397]
[1738679101409,0.0029777,99145.0,99144.0,0.45899397]
[1738679101904,0.0029777,99145.0,99144.0,0.45599397]
[1738679102135,0.0029777,99145.0,99144.0,0.45899397]
[1738679102383,0.0029777,99145.0,99144.0,0.45599397]
[1738679102585,0.0029777,99145.0,99144.0,0.45899397]
[1738679102763,0.0029777,99145.0,99144.0,0.44899397]
[1738679104475,0.0029777,99145.0,99144.0,0.44599397]
[1738679104683,0.352868,99187.0,99162.0,0.151267]
[1738679104892,0.201645,99184.0,99163.0,0.10238506]
[1738679105427,0.023,99182.0,99163.0,0.10238506]
[1738679105600,0.0763,99179.0,99163.0,0.10238506]
[1738679105804,0.15126,99167.0,99163.0,0.10238506]
[1738679105959,0.023,99176.0,99163.0,0.10238506]
[1738679106168,0.023,99178.0,99163.0,0.10538506]
[1738679106382,0.223764,99164.0,99163.0,0.003]
[1738679106586,0.300864,99164.0,99163.0,0.003]
[1738679107365,0.3009708,99164.0,99163.0,0.003]
[1738679108188,0.3009708,99164.0,99163.0,0.006]
[1738679108189,0.4509708,99164.0,99163.0,0.006]
[1738679108421,0.4509708,99164.0,99163.0,0.003]
[1738679108566,0.234093,99145.0,99144.0,0.00069465]
[1738679109460,0.215093,99145.0,99144.0,0.00069465]
[1738679110113,0.215093,99145.0,99144.0,0.00369465]
[1738679110317,0.215093,99145.0,99144.0,0.00069465]
[1738679111435,0.283493,99145.0,99144.0,0.00069465]
[1738679112456,0.283493,99145.0,99144.0,0.00369465]
[1738679112814,0.283493,99145.0,99144.0,0.00069465]
[1738679113147,0.283493,99145.0,99144.0,0.00369465]
[1738679113879,0.05554771,99145.0,99144.0,0.10607971]
[1738679114119,0.20684071,99145.0,99144.0,0.10607971]
[1738679114323,0.20684071,99145.0,99144.0,0.00369465]
[1738679114520,0.30494071,99145.0,99144.0,0.00369465]
[1738679116922,0.30494071,99145.0,99144.0,0.00069465]
[1738679117123,0.30494071,99145.0,99144.0,0.00369465]
[1738679117646,0.30494071,99145.0,99130.0,0.13]
[1738679117647,0.252608,99135.0,99130.0,0.13]
[1738679119786,0.023,99134.0,99130.0,0.13]
[1738679120114,0.251614,99131.0,99130.0,0.07176127]
[1738679121196,0.251614,99131.0,99130.0,0.01282127]
[1738679121397,0.298614,99131.0,99130.0,0.01082127]
[1738679121820,0.298614,99131.0,99130.0,0.01282127]
[1738679122022,0.54105134,99131.0,99130.0,0.002]
[1738679122422,0.448614,99131.0,99130.0,0.002]
[1738679122627,0.251833,99119.0,99112.0,0.00022407]
[1738679125169,0.251833,99119.0,99118.0,0.00322407]
[1738679125994,0.251833,99119.0,99118.0,0.00022407]
[1738679126406,0.26195423,99119.0,99118.0,0.00022407]
[1738679127471,0.31165423,99119.0,99118.0,0.00022407]
[1738679128413,0.023,99118.0,99112.0,0.00022407]
[1738679128617,0.151342,99113.0,99112.0,0.00022407]
[1738679129423,0.155342,99113.0,99112.0,0.00022407]
[1738679129810,0.1558117,99113.0,99112.0,0.00022407]
[1738679131010,0.2311117,99113.0,99112.0,0.00022407]
[1738679131612,0.151354,99105.0,99104.0,0.00022407]
[1738679131808,0.303154,99105.0,99104.0,0.00022407]
[1738679132351,0.151398,99076.0,99059.0,0.0661]
[1738679132550,0.151396,99078.0,99075.0,0.18311445]
[1738679132754,0.201842,99087.0,99076.0,0.10238506]
[1738679132965,0.40364,99098.0,99076.0,0.10238506]
[1738679133183,0.13738375,99100.0,99076.0,0.10238506]
[1738679133184,0.151397,99077.0,99076.0,0.10238506]
[1738679133385,0.224838,99089.0,99076.0,0.10238506]
[1738679133560,0.151396,99078.0,99076.0,0.10252603]
[1738679133960,0.151397,99077.0,99076.0,0.10252603]
[1738679134191,0.151397,99077.0,99076.0,0.10452603]
[1738679134554,0.132397,99077.0,99076.0,0.10452603]
[1738679135730,0.132397,99077.0,99076.0,0.10252603]
[1738679136046,0.01058306,99080.0,99076.0,0.10452603]
[1738679136289,0.151397,99077.0,99076.0,0.10452603]
[1738679136457,0.151397,99077.0,99076.0,0.10252603]
[1738679136710,0.201848,99085.0,99076.0,0.10452603]
[1738679136906,0.151397,99077.0,99076.0,0.10452603]
[1738679137112,0.151397,99077.0,99076.0,0.10252603]
[1738679137312,0.151397,99077.0,99076.0,0.10452603]
[1738679137466,0.201854,99082.0,99076.0,0.10452603]
[1738679137672,0.023,99087.0,99076.0,0.10452603]
[1738679137871,0.151397,99077.0,99076.0,0.10452603]
[1738679139064,0.151397,99077.0,99076.0,0.10252603]
[1738679139478,0.132397,99077.0,99076.0,0.10252603]
[1738679139656,0.132397,99077.0,99076.0,0.10452603]
[1738679140059,0.132397,99077.0,99076.0,0.10252603]
[1738679140254,0.14289323,99077.0,99076.0,0.10452603]
[1738679141333,0.14289323,99077.0,99076.0,0.10252603]
[1738679141715,0.14289323,99077.0,99076.0,0.10452603]
[1738679143433,0.14289323,99077.0,99076.0,0.10475052]
[1738679143654,0.14289323,99077.0,99076.0,0.00236546]
[1738679143987,0.16589323,99077.0,99076.0,0.00036546]
[1738679144332,0.14289323,99077.0,99076.0,0.00036546]
[1738679144555,0.01049623,99077.0,99076.0,0.00236546]
[1738679144761,0.151397,99077.0,99076.0,0.00036546]
[1738679145128,0.174397,99077.0,99076.0,0.00236546]
[1738679145335,0.302697,99077.0,99076.0,0.00236546]
[1738679146185,0.37237864,99077.0,99034.0,0.00022407]
[1738679146392,0.262377,99075.0,99054.0,0.08072939]
[1738679146584,0.13886864,99077.0,99055.0,0.10238506]
[1738679146819,0.151426,99058.0,99055.0,0.10238506]
[1738679146975,0.151429,99057.0,99055.0,0.10238506]
[1738679147674,0.2019,99059.0,99055.0,0.10238506]
[1738679147877,0.151426,99058.0,99055.0,0.10438506]
[1738679148180,0.353326,99059.0,99055.0,0.10238506]
[1738679148382,0.151426,99059.0,99055.0,0.10438506]
[1738679148577,0.151427,99058.0,99055.0,0.10438506]
[1738679148780,0.151437,99051.0,99044.0,0.00036512]
[1738679148983,0.151437,99051.0,99045.0,0.10238506]
[1738679149394,0.132437,99051.0,99045.0,0.10238506]
[1738679149595,0.151438,99050.0,99045.0,0.10238506]
[1738679149821,0.03351739,99063.0,99045.0,0.10238506]
[1738679150019,0.151439,99050.0,99045.0,0.10238506]
[1738679150281,0.01051739,99063.0,99045.0,0.10238506]
[1738679150693,0.151417,99065.0,99048.0,0.15144]
[1738679150892,0.201865,99076.0,99055.0,0.002]
[1738679150893,0.023,99075.0,99055.0,0.002]
[1738679151100,0.151418,99064.0,99056.0,0.10238506]
[1738679151305,0.023,99073.0,99056.0,0.10238506]
[1738679151525,0.023,99075.0,99056.0,0.10238506]
[1738679151923,0.201881,99068.0,99056.0,0.10238506]
[1738679152128,0.15144,99050.0,99044.0,0.00036512]
[1738679152330,0.151444,99046.0,99045.0,0.10238506]
[1738679154323,0.151446,99045.0,99044.0,0.00036512]
[1738679154492,0.155446,99045.0,99044.0,0.00036512]
[1738679155690,0.305446,99045.0,99044.0,0.00036512]
[1738679156299,0.31604995,99045.0,99044.0,0.00036512]
[1738679157059,0.31604995,99045.0,99044.0,0.00236512]
[1738679157804,0.39414995,99045.0,99044.0,0.00236512]
[1738679159087,0.39464995,99045.0,99044.0,0.00236512]
[1738679159787,0.01110395,99045.0,99044.0,0.00236512]
[1738679159989,0.01110395,99045.0,99044.0,0.10275018]
[1738679160332,0.18554995,99045.0,99044.0,0.00036512]
[1738679160538,0.151461,99035.0,99034.0,0.00022407]
[1738679160758,0.254561,99035.0,99034.0,0.00022407]
[1738679160948,0.302561,99035.0,99034.0,0.00036515]
[1738679161357,0.363071,99035.0,99034.0,0.00036515]
[1738679162625,0.302561,99035.0,99034.0,0.00036515]
[1738679163004,0.302561,99035.0,99034.0,0.00236515]
[1738679163431,0.302561,99035.0,99034.0,0.00036515]
[1738679163629,0.302561,99035.0,99034.0,0.00236515]
[1738679163831,0.3933994,99035.0,99034.0,0.00236515]
[1738679164032,0.151467,99031.0,99018.0,0.00022407]
[1738679164232,0.151486,99019.0,99018.0,0.00022407]
[1738679164412,0.227486,99019.0,99018.0,0.00022407]
[1738679164616,0.231486,99019.0,99018.0,0.00022407]
[1738679166299,0.24199908,99019.0,99018.0,0.00022407]
[1738679166506,0.01051308,99019.0,99018.0,0.00022407]
[1738679166708,0.151486,99019.0,99018.0,0.00022407]
[1738679168624,0.174486,99019.0,99018.0,0.00022407]
[1738679169659,0.151486,99019.0,99018.0,0.00022407]
[1738679170065,0.174486,99019.0,99018.0,0.00022407]
[1738679170283,0.255386,99019.0,99018.0,0.00222407]
[1738679170907,0.303686,99019.0,99018.0,0.00222407]
[1738679172572,0.453686,99019.0,99018.0,1e-08]
[1738679173195,0.17449,99016.0,99000.0,0.0015]
[1738679173550,0.25449,99016.0,99000.0,0.0015]
[1738679174356,0.151507,99005.0,99000.0,0.0015]
[1738679174601,0.296407,99005.0,99004.0,0.00036541]
[1738679175183,0.446407,99005.0,99004.0,0.00036541]
[1738679175364,0.15155,98977.0,98976.0,0.00022449]
[1738679175564,0.15155,98977.0,98976.0,0.00069512]
[1738679177653,0.16189345,98977.0,98976.0,0.00069512]
[1738679179625,0.14289345,98977.0,98976.0,0.00069512]
[1738679180383,0.14289345,98977.0,98976.0,0.00269512]
[1738679181092,0.14289345,98977.0,98976.0,0.00069512]
[1738679181620,0.14289345,98977.0,98976.0,0.00269512]
[1738679182050,0.14289345,98977.0,98976.0,0.00069512]
[1738679183771,0.14289345,98977.0,98976.0,0.00269512]
[1738679184209,0.14289345,98977.0,98976.0,0.00069512]
[1738679184377,0.14289345,98977.0,98976.0,0.00269512]
[1738679184622,0.16189345,98977.0,98976.0,0.00269512]
[1738679184822,0.16189345,98977.0,98976.0,0.00069512]
[1738679185251,0.16189345,98977.0,98976.0,0.00269512]
[1738679189274,0.01034345,98977.0,98976.0,0.10508018]
[1738679189476,0.14288445,98983.0,98976.0,0.10508018]
[1738679189672,0.14288445,98983.0,98977.0,0.10238506]
[1738679190432,0.151543,98982.0,98977.0,0.10238506]
[1738679190639,0.151544,98981.0,98977.0,0.10238506]
[1738679191249,0.151541,98983.0,98977.0,0.10238506]
[1738679191453,0.01040999,98989.0,98977.0,0.10238506]
[1738679191748,0.0822,99007.0,98979.0,0.10238506]
[1738679191971,0.0103492,99003.0,98986.0,0.202047]
[1738679192089,0.201993,99013.0,98987.0,0.10238506]
[1738679192295,0.202001,99009.0,98987.0,0.10238506]
[1738679192496,0.201993,99013.0,98987.0,0.10238506]
[1738679192497,0.151512,99002.0,98987.0,0.10238506]
[1738679192919,0.151513,99001.0,98987.0,0.10238506]
[1738679193193,0.151511,99003.0,98987.0,0.25391906]
[1738679193582,0.151512,99002.0,98987.0,0.10438506]
[1738679193759,0.151512,99002.0,98987.0,0.10238506]
[1738679194292,0.202016,99002.0,98987.0,0.10438506]
[1738679194473,0.151512,99002.0,98987.0,0.10238506]
[1738679194675,0.00022471,99005.0,98987.0,0.10238506]
[1738679194676,0.13738375,99000.0,98987.0,0.10238506]
[1738679194880,0.151533,98988.0,98987.0,0.10238506]
[1738679195082,0.00022471,99005.0,98988.0,0.0661]
[1738679195284,0.151525,98994.0,98989.0,0.10238506]
[1738679195458,0.151527,98993.0,98989.0,0.10238506]
[1738679195658,0.023,99003.0,98989.0,0.10238506]
[1738679195884,0.151526,98993.0,98989.0,0.10238506]
[1738679196083,0.023,99003.0,98989.0,0.10238506]
[1738679196287,0.151527,98992.0,98989.0,0.10238506]
[1738679196487,0.15153,98990.0,98989.0,0.10238506]
[1738679197078,0.15153,98990.0,98989.0,0.10338506]
[1738679197283,0.15153,98990.0,98989.0,0.10238506]
[1738679197930,0.15153,98990.0,98989.0,0.001]
[1738679198537,0.151543,98982.0,98975.0,0.00022449]
[1738679198739,0.151543,98982.0,98977.0,0.10238506]
[1738679199248,0.01040693,98990.0,98977.0,0.10238506]
[1738679199672,0.247938,98992.0,98977.0,0.10238506]
[1738679199812,0.151544,98981.0,98977.0,0.10238506]
[1738679200020,0.151548,98978.0,98977.0,0.10238506]
[1738679201098,0.202054,98983.0,98977.0,0.10238506]
[1738679201425,0.023,98991.0,98977.0,0.10238506]
[1738679201628,0.01019573,98992.0,98977.0,0.30445006]
[1738679201831,0.01019573,98992.0,98977.0,0.10238506]
[1738679202052,0.0761,99002.0,98978.0,0.00121228]
[1738679202232,0.202018,99001.0,98979.0,0.10238506]
[1738679202458,0.151529,98991.0,98979.0,0.25393206]
[1738679202669,0.151516,99000.0,98987.0,0.151534]
[1738679202874,0.01006179,99002.0,98988.0,0.10238506]
[1738679203286,0.202005,99008.0,98989.0,0.202042]
[1738679203512,0.202005,99008.0,98990.0,0.10238506]
[1738679203712,0.151505,99007.0,98991.0,0.151528]
[1738679203915,0.151505,99007.0,98990.0,0.10238506]
[1738679203916,0.202005,99008.0,98992.0,0.25391006]
[1738679204204,0.202005,99008.0,98992.0,0.10238506]
[1738679204427,0.0789,99025.0,98992.0,0.10238506]
[1738679204639,0.01065647,99005.0,99004.0,0.151509]
[1738679204850,0.00022471,99005.0,99004.0,0.25389406]
[1738679205790,0.00022471,99005.0,99004.0,0.28513911]
[1738679206192,0.00022471,99005.0,99004.0,0.25389406]
[1738679207411,0.00022471,99005.0,99004.0,0.40389406]
[1738679208494,0.00022471,99005.0,99004.0,0.43610446]
[1738679209125,0.00022471,99005.0,99004.0,0.43510446]
[1738679209532,0.151465,99033.0,99016.0,0.151489]
[1738679209741,0.151465,99033.0,99017.0,0.25387306]
[1738679210253,0.151462,99035.0,99019.0,0.151485]
[1738679210501,0.151463,99034.0,99020.0,0.10238506]
[1738679210836,0.00014077,99034.0,99022.0,0.201975]
[1738679211035,0.00014077,99034.0,99031.0,0.151467]
[1738679211290,0.00014077,99034.0,99032.0,0.10238506]
[1738679211954,0.00014077,99034.0,99033.0,0.25506077]
[1738679212189,0.00014077,99034.0,99033.0,0.40384906]
[1738679212398,0.00014077,99034.0,99033.0,0.46994906]
[1738679212602,0.00014077,99034.0,99033.0,0.50109416]
[1738679213024,0.00014077,99034.0,99033.0,0.51121983]
[1738679213893,0.00014077,99034.0,99033.0,0.51221983]
[1738679214080,0.00014077,99034.0,99033.0,0.51121983]
[1738679214434,0.0002245,99045.0,99033.0,0.51121983]
[1738679214627,0.06259466,99064.0,99063.0,0.151418]
[1738679214827,0.06259466,99064.0,99063.0,0.25380306]
[1738679214828,0.06273574,99064.0,99063.0,0.25380306]
[1738679215050,0.00014108,99064.0,99063.0,0.25380306]
[1738679215705,0.00014108,99064.0,99063.0,0.10238506]
[1738679216317,0.00014108,99064.0,99063.0,0.10338506]
[1738679216684,0.07544108,99064.0,99063.0,0.001]
[1738679216878,0.09844108,99064.0,99063.0,0.001]
[1738679217260,0.201893,99062.0,99032.0,0.201953]
[1738679217459,0.24985808,99064.0,99063.0,0.001]
[1738679217686,0.09844108,99064.0,99039.0,0.151454]
[1738679217865,0.151433,99054.0,99040.0,0.25383806]
[1738679218889,0.09866579,99064.0,99040.0,0.25383806]
[1738679219092,0.09866579,99064.0,99063.0,0.001]
[1738679219305,0.09866579,99064.0,99040.0,0.25383706]
[1738679219656,0.09866579,99064.0,99044.0,0.151446]
[1738679219862,0.07566579,99064.0,99046.0,0.10238506]
[1738679220060,0.00036579,99064.0,99062.0,0.151419]
[1738679220302,0.00036579,99064.0,99063.0,0.10338506]
[1738679220506,0.00036579,99064.0,99063.0,0.25480306]
[1738679220684,0.00036579,99064.0,99063.0,0.25380306]
[1738679222536,0.00036579,99064.0,99063.0,0.40380306]
[1738679223763,0.00036579,99064.0,99063.0,0.10238506]
[1738679223966,0.00036579,99064.0,99063.0,0.10338506]
[1738679224362,0.00036579,99064.0,99063.0,0.10238506]
[1738679224578,0.05886579,99075.0,99063.0,0.10338506]
[1738679225215,0.06939049,99075.0,99063.0,0.10338506]
[1738679226824,0.06939049,99075.0,99063.0,0.10238506]
[1738679227851,0.06939049,99075.0,99063.0,0.10338506]
[1738679228155,0.0105247,99075.0,99065.0,0.10238506]
[1738679228594,0.07732471,99082.0,99065.0,0.10238506]
[1738679228830,0.07732471,99082.0,99070.0,0.10238506]
[1738679228831,0.00022471,99082.0,99070.0,0.10238506]
[1738679229012,0.00022471,99082.0,99075.0,0.1514]
[1738679229221,0.01047152,99082.0,99075.0,0.25378506]
[1738679229602,0.06867842,99092.0,99076.0,0.151398]
[1738679229781,0.06867842,99092.0,99077.0,0.10238506]
[1738679229996,0.07874306,99092.0,99077.0,0.10238506]
[1738679231427,0.13738375,99090.0,99077.0,0.10238506]
[1738679231637,0.201838,99089.0,99077.0,0.10238506]
[1738679231853,0.151394,99079.0,99077.0,0.10238506]
[1738679232051,0.20185,99084.0,99077.0,0.10238506]
[1738679232333,0.20185,99084.0,99049.0,0.201919]
[1738679232334,0.0001069,99075.0,99045.0,0.00022449]
[1738679232535,0.0766,99073.0,99053.0,0.00014108]
[1738679232672,0.0766,99073.0,99054.0,0.10238506]
[1738679232673,0.151405,99072.0,99054.0,0.10238506]
[1738679233056,0.224873,99072.0,99054.0,0.10238506]
[1738679233176,0.13738375,99064.0,99054.0,0.10238506]
[1738679233380,0.151424,99060.0,99054.0,0.10238506]
[1738679233581,0.151419,99063.0,99054.0,0.10238506]
[1738679233869,0.151414,99066.0,99054.0,0.10238506]
[1738679234069,0.023,99069.0,99054.0,0.10238506]
[1738679234223,0.023,99068.0,99054.0,0.10238506]
[1738679234426,0.023,99068.0,99053.0,0.00014108]
[1738679234685,0.13738375,99070.0,99053.0,0.10252614]
[1738679234686,0.151428,99057.0,99053.0,0.10252614]
[1738679234861,0.023,99065.0,99053.0,0.10252614]
[1738679235074,0.15143,99056.0,99053.0,0.10252614]
[1738679235277,0.151432,99054.0,99053.0,0.10252614]
[1738679235478,0.151432,99054.0,99053.0,0.00014108]
[1738679235637,0.201904,99057.0,99053.0,0.00014108]
[1738679235837,0.023,99066.0,99053.0,0.00014108]
[1738679236094,0.13738375,99070.0,99053.0,0.00014108]
[1738679236095,0.151428,99057.0,99053.0,0.00014108]
[1738679236250,0.023,99068.0,99053.0,0.00014108]
[1738679236461,0.023,99064.0,99053.0,0.00014108]
[1738679236806,0.15143,99056.0,99053.0,0.00014108]
[1738679236944,0.151431,99055.0,99053.0,0.00014108]
[1738679237145,0.151429,99057.0,99053.0,0.00014108]
[1738679237358,0.233432,99054.0,99053.0,0.00014108]
[1738679238473,0.082,99054.0,99053.0,0.00014108]
[1738679239024,0.082,99054.0,99053.0,0.00114108]
[1738679239448,0.082,99054.0,99053.0,0.00014108]
[1738679240060,0.082,99054.0,99053.0,0.00114108]
[1738679240491,0.082,99054.0,99053.0,0.00014108]
[1738679240695,0.09495357,99054.0,99053.0,0.00014108]
[1738679241438,0.01295357,99054.0,99053.0,0.10252614]
[1738679241704,0.0794,99079.0,99059.0,0.151424]
[1738679242011,0.0794,99079.0,99060.0,0.10238506]
[1738679242172,0.05918461,99074.0,99060.0,0.10238506]
[1738679243263,0.05918461,99074.0,99060.0,0.10338506]
[1738679243683,0.13738375,99090.0,99060.0,0.10338506]
[1738679243684,0.1252069,99104.0,99073.0,0.25378806]
[1738679243877,0.1252069,99104.0,99074.0,0.25499703]
[1738679244084,0.01263185,99089.0,99074.0,0.25378606]
[1738679244292,0.0001069,99104.0,99074.0,0.40378606]
[1738679244485,0.07614355,99117.0,99076.0,0.201865]
[1738679244751,0.07614355,99117.0,99098.0,0.151364]
[1738679244994,0.07614355,99117.0,99099.0,0.10238506]
[1738679245372,0.07614355,99117.0,99116.0,0.151337]
[1738679245373,0.01270906,99117.0,99116.0,0.151337]
[1738679245524,0.0001068,99145.0,99116.0,0.10238506]
[1738679245725,0.0001068,99145.0,99131.0,0.151314]
[1738679245929,0.00069517,99134.0,99133.0,0.25369606]
[1738679246436,0.00069517,99134.0,99133.0,0.10238506]
[1738679246963,0.00069517,99134.0,99133.0,0.25369606]
[1738679247160,0.00069517,99134.0,99133.0,0.10238506]
[1738679247743,0.00069517,99134.0,99133.0,0.25369606]
[1738679249519,0.20169,99162.0,99133.0,0.25369606]
[1738679249520,0.151274,99158.0,99135.0,0.151308]
[1738679249671,0.0001411,99162.0,99136.0,0.10238506]
[1738679249911,0.0001411,99162.0,99144.0,0.151294]
[1738679250281,0.0001411,99162.0,99147.0,0.15129]
[1738679250488,0.0001411,99162.0,99148.0,0.10238506]
[1738679250649,0.0001411,99162.0,99149.0,0.10359526]
[1738679250857,0.0001411,99162.0,99149.0,0.25488226]
[1738679251054,0.0001411,99162.0,99149.0,0.10238506]
[1738679251837,0.151271,99160.0,99149.0,0.10238506]
[1738679252042,0.0001411,99162.0,99149.0,0.10238506]
[1738679252376,0.0001411,99162.0,99149.0,0.10338506]
[1738679253829,0.0001411,99162.0,99160.0,0.15127]
[1738679254036,0.0001411,99162.0,99161.0,0.10238506]
[1738679254601,0.04325361,99169.0,99161.0,0.10238506]
[1738679256250,0.05617559,99169.0,99161.0,0.10338506]
[1738679256609,0.0001068,99162.0,99161.0,0.10332391]
[1738679258000,0.0001068,99162.0,99161.0,0.10232391]
[1738679258547,0.0001068,99162.0,99161.0,0.10332391]
[1738679259199,0.0001068,99162.0,99161.0,0.10232391]
[1738679259729,0.23895839,99169.0,99161.0,0.10332391]
[1738679259881,0.151261,99167.0,99161.0,0.10332391]
[1738679260313,0.151267,99162.0,99161.0,0.10332391]
[1738679260559,0.151265,99164.0,99161.0,0.10332391]
[1738679260872,0.151267,99162.0,99161.0,0.10332391]
[1738679261038,0.151267,99162.0,99161.0,0.001]
[1738679261612,0.151265,99164.0,99161.0,0.001]
[1738679261816,0.151267,99162.0,99161.0,0.001]
[1738679262013,0.023,99168.0,99139.0,0.201735]
[1738679262259,0.023,99168.0,99143.0,0.0001411]
[1738679262437,0.201682,99166.0,99161.0,0.001]
[1738679262641,0.151267,99162.0,99161.0,0.001]
[1738679263362,0.023,99168.0,99144.0,0.10238506]
[1738679263363,0.151273,99159.0,99144.0,0.10238506]
[1738679264164,0.201692,99161.0,99144.0,0.10238506]
[1738679264523,0.132272,99160.0,99144.0,0.10238506]
[1738679264723,0.023,99168.0,99144.0,0.10238506]
[1738679264958,0.151268,99162.0,99144.0,0.10238506]
[1738679265153,0.224678,99168.0,99144.0,0.10238506]
[1738679265154,0.023,99168.0,99144.0,0.10238506]
[1738679265562,0.151262,99166.0,99147.0,0.15129]
[1738679265773,0.023,99168.0,99143.0,0.0001411]
[1738679265774,0.151265,99164.0,99148.0,0.10238506]
[1738679265991,0.03728239,99169.0,99153.0,0.10238506]
[1738679266456,0.03728239,99169.0,99153.0,0.25366506]
[1738679266658,0.03728239,99169.0,99153.0,0.10238506]
[1738679267076,0.151264,99164.0,99153.0,0.10238506]
[1738679267672,0.151264,99164.0,99153.0,0.10338506]
[1738679267876,0.151264,99164.0,99153.0,0.10238506]
[1738679268077,0.201677,99168.0,99153.0,0.10238506]
[1738679268277,0.03728239,99169.0,99153.0,0.10338506]
[1738679268727,0.01292198,99169.0,99165.0,0.151261]
[1738679269060,0.0001067,99168.0,99166.0,0.10238506]
[1738679269596,0.151237,99182.0,99166.0,0.10238506]
[1738679269770,0.3091685,99183.0,99166.0,0.10238506]
[1738679269974,0.15124,99180.0,99166.0,0.10238506]
[1738679270389,0.12045065,99183.0,99166.0,0.10238506]
[1738679270594,0.151245,99177.0,99166.0,0.10238506]
[1738679270863,0.15124,99180.0,99166.0,0.10238506]
[1738679271056,0.224649,99182.0,99166.0,0.10238506]
[1738679271254,0.13651885,99180.0,99166.0,0.10238506]
[1738679271455,0.151259,99167.0,99166.0,0.10238506]
[1738679271655,0.151259,99167.0,99166.0,0.10338506]
[1738679272642,0.14345065,99183.0,99166.0,0.10338506]
[1738679272885,0.023,99180.0,99166.0,0.10338506]
[1738679273240,0.151259,99167.0,99166.0,0.10338506]
[1738679274384,0.151258,99169.0,99166.0,0.10238506]
[1738679274588,0.10145065,99183.0,99166.0,0.10238506]
[1738679275016,0.151249,99175.0,99166.0,0.10338506]
[1738679275189,0.15125,99174.0,99166.0,0.10338506]
[1738679275568,0.15125,99173.0,99166.0,0.10238506]
[1738679275991,0.201662,99176.0,99166.0,0.10238506]
[1738679276198,0.151251,99173.0,99166.0,0.10238506]
[1738679276495,0.151251,99173.0,99166.0,0.10338506]
[1738679276872,0.201662,99176.0,99166.0,0.10338506]
[1738679277078,0.151255,99170.0,99166.0,0.10338506]
[1738679277487,0.201669,99173.0,99166.0,0.10338506]
[1738679277707,0.151254,99171.0,99166.0,0.10338506]
[1738679277900,0.201669,99173.0,99166.0,0.10338506]
[1738679278089,0.151253,99171.0,99166.0,0.10338506]
[1738679278851,0.151256,99170.0,99166.0,0.10338506]
[1738679279193,0.151259,99167.0,99166.0,0.10338506]
[1738679279395,0.151259,99167.0,99166.0,0.10238506]
[1738679279601,0.132259,99167.0,99166.0,0.10238506]
[1738679280004,0.132259,99167.0,99166.0,0.10338506]
[1738679280158,0.132259,99167.0,99166.0,0.10238506]
[1738679280367,0.151279,99154.0,99144.0,0.00022407]
[1738679280555,0.201694,99161.0,99145.0,0.13368574]
[1738679280760,0.0001067,99174.0,99150.0,0.10238506]
[1738679280983,0.151251,99173.0,99158.0,0.151272]
[1738679281163,0.01275794,99174.0,99159.0,0.10238506]
[1738679281499,0.151252,99173.0,99159.0,0.10238506]
[1738679281699,0.151256,99170.0,99159.0,0.10238506]
[1738679282045,0.21442494,99174.0,99159.0,0.10238506]
[1738679282173,0.21442394,99174.0,99159.0,0.10238506]
[1738679282375,0.01275794,99174.0,99159.0,0.10238506]
[1738679282578,0.01275794,99174.0,99160.0,0.00121007]
[1738679282817,0.01275794,99174.0,99163.0,0.151264]